Workbook

Sheet Лист1
A1: S4 -S8 Серия Simplex : Oil Free | M1: Курс Euro | N1: =NBUCURRENCY("EUR","rate",TODAY()) -> 32.328754
A3: Серия S | B3: Type | C3: S4 | G3: S6 | K3: S8
A4: Максимальное давление, бар | B4: bar | C4: 8 | E4: 10 | G4: 8 | I4: 10 | K4: 8 | M4: 10
A5: Производительность, м3/ч | B5: m3/h | C5: 23.6 | E5: 21.2 | G5: 34.5 | I5: 26 | K5: 53 | M5: 41.3
A6: Двигатель IP 55, кВт | B6: kW | C6: 4 | E6: 4 | G6: 5.5 | I6: 5.5 | K6: 7.5 | M6: 7.5
A7: Регулятор напряжения, Вт | B7: 24v | C7: . | E7: . | G7: . | I7: . | K7: . | M7: .
A8: Акустический корпус | C8: . | E8: . | G8: . | I8: . | K8: . | M8: .
A9: Воздушное охлаждение | C9: . | E9: . | G9: . | I9: . | K9: . | M9: .
A10: Модуль для удаленного мониторинга Mod-Bus-RTU | C10: . | E10: . | G10: . | I10: . | K10: . | M10: .
A11: 230 Вт Базовое управление реле
A12: Код | C12: SQ4-30A03 | E12: SQ4-30A04 | G12: SQ4-30A07 | I12: SQ4-30A08 | K12: SQ4-30A48 | M12: SQ4-30A49
A13: Цена в (Euro) | C13: 8100 | D13: =C13*$N$1 -> 261862.9074 | E13: 8100 | F13: =E13*$N$1 -> 261862.9074 | G13: 10500 | H13: =G13*$N$1 -> 339451.917 | I13: 10500 | J13: =I13*$N$1 -> 339451.917 | K13: 12000 | L13: =K13*$N$1 -> 387945.048 | M13: 12000 | N13: =M13*$N$1 -> 387945.048
A14: 230 Вт Цифровой электронный контроллер HMI
A15: Код | C15: SQ4-30A05 | E15: SQ4-30A06 | G15: SQ4-30A09 | I15: SQ4-30A10 | K15: SQ4-30A50 | M15: SQ4-30A51
A16: Цена в (Euro) | C16: 10100 | D16: =C16*$N$1 -> 326520.4154 | E16: 10100 | F16: =E16*$N$1 -> 326520.4154 | G16: 12500 | H16: =G16*$N$1 -> 404109.425 | I16: 12500 | J16: =I16*$N$1 -> 404109.425 | K16: 14000 | L16: =K16*$N$1 -> 452602.556 | M16: 14000 | N16: =M16*$N$1 -> 452602.556
A17: 400 Вт Базовое управление реле
A18: Код | C18: SQ4-30A11 | E18: SQ4-30A12 | G18: SQ4-30A58 | I18: SQ4-30A59 | K18: SQ4-30A62 | M18: SQ4-30A47
A19: Цена в (Euro) | C19: 8100 | D19: 261862.9074 | E19: 8100 | F19: 261862.9074 | G19: 10500 | H19: =G19*$N$1 -> 339451.917 | I19: 10500 | J19: =I19*$N$1 -> 339451.917 | K19: 12000 | L19: =K19*$N$1 -> 387945.048 | M19: 12000 | N19: 387945.048
A20: 400 Вт Цифровой электронный контроллер HMI
A21: Код | C21: SQ4-30A13 | E21: SQ4-30A14 | G21: SQ4-30A60 | I21: SQ4-30A61 | K21: SQ4-30A63 | M21: SQ4-30A64
A22: Цена в (Euro) | C22: 10100 | D22: 326520.4154 | E22: 10100 | F22: 326520.4154 | G22: 12500 | H22: =G22*$N$1 -> 404109.425 | I22: 12500 | J22: =I22*$N$1 -> 404109.425 | K22: 14000 | L22: =K22*$N$1 -> 452602.556 | M22: 14000 | N22: 452602.556
A23: 400 Вт Мягкий старт/ базовое управление реле | F23: 0
A24: Код | C24: NA | E24: NA | G24: SQ4-30A15 | I24: SQ4-30A16 | K24: SQ4-30A19 | M24: SQ4-30A20
A25: Цена в (Euro) | G25: 11100 | H25: =G25*$N$1 -> 358849.1694 | I25: 11100 | J25: =I25*$N$1 -> 358849.1694 | K25: 12700 | L25: =K25*$N$1 -> 410575.1758 | M25: 12700 | N25: 410575.1758
A26: 400 Вт Мягкий старт/ Цифровой электронный контроллер HMI
A27: Код | C27: NA | E27: NA | G27: SQ4-30A17 | I27: SQ4-30A18 | K27: SQ4-30A21 | M27: SQ4-30A22
A28: Цена в (Euro) | G28: 13400 | H28: =G28*$N$1 -> 433205.3036 | I28: 13400 | J28: =I28*$N$1 -> 433205.3036 | K28: 14900 | L28: =K28*$N$1 -> 481698.4346 | M28: 14900 | N28: 481698.4346
A30: Цены рассчитаны на условиях:
A31: 1. Условия поставки - EXW, г. Киев.
A32: 2. Пусконаладка оборудования не включена.
A33: 3. Включена стандартная гарантия на оборудование 12 месяцев.
